bitfinex/quotes_SOLUSD_20250129
["timestamp","ask_amount","ask_price","bid_price","bid_amount"]
[1738179237061,26.94461746,227.36,227.25,26.94461746]
[1738179237257,26.94461746,227.3,227.22,1.0]
[1738179237666,26.94461746,227.28,227.18,1.0]
[1738179238157,26.94461746,227.22,227.12,27.00761746]
[1738179238359,26.94461746,227.27,227.23,1.0]
[1738179238576,26.94461746,227.25,227.18,1.0]
[1738179238777,26.94461746,227.21,227.13,1.0]
[1738179238958,0.82533875,227.2,227.12,0.063]
[1738179239167,0.82540863,227.26,227.13,1.0]
[1738179239361,0.82540863,227.26,227.12,0.0001]
[1738179239362,20.0,227.25,227.12,0.0001]
[1738179239676,0.82552355,227.24,227.12,0.0001]
[1738179239876,20.0,227.18,227.0,0.063]
[1738179240075,26.94461746,227.07,227.0,0.063]
[1738179240280,26.94461746,227.02,227.0,0.063]
[1738179240461,0.82608831,227.01,227.0,0.063]
[1738179240666,0.82608831,227.01,227.0,0.0001]
[1738179240985,21.0,226.99,226.83,0.5001]
[1738179241190,26.94461746,226.92,226.83,26.94461746]
[1738179241498,26.94461746,226.96,226.85,27.44471746]
[1738179241802,0.82646272,226.98,226.89,26.94461746]
[1738179241803,26.94461746,226.98,226.89,26.94461746]
[1738179241999,26.94461746,226.97,226.91,0.5001]
[1738179242210,26.94461746,226.99,226.93,0.5001]
[1738179242382,26.94461746,226.96,226.85,0.5001]
[1738179242589,0.66366098,226.95,226.83,0.5001]
[1738179242893,26.94461746,226.84,226.77,0.5631]
[1738179243087,0.75088,226.94,226.77,0.063]
[1738179243088,26.94461746,226.81,226.77,0.063]
[1738179243285,0.12549,226.99,226.77,27.50771746]
[1738179243286,26.94461746,226.86,226.77,27.50771746]
[1738179243608,0.82661731,226.85,226.77,0.5631]
[1738179243790,26.94461746,226.79,226.77,0.063]
[1738179244287,0.82687893,226.78,226.77,0.0001]
[1738179244498,26.94461746,226.79,226.77,0.0001]
[1738179244680,26.94461746,226.88,226.85,0.5001]
[1738179244880,0.4999,227.07,226.9,0.5001]
[1738179245080,0.4999,227.07,226.83,23.776884]
[1738179245081,0.4999,227.03,226.85,0.5001]
[1738179245292,1.4999,226.99,226.78,0.5001]
[1738179245494,1.0,226.95,226.8,0.5001]
[1738179245806,1.0,226.9,226.77,0.0001]
[1738179246105,26.94461746,226.78,226.77,0.0001]
[1738179246310,20.0,226.75,226.62,0.5631]
[1738179246603,26.94461746,226.63,226.62,0.063]
[1738179248388,20.0,226.6,226.41,0.5001]
[1738179248574,26.94461746,226.52,226.5,0.5001]
[1738179248777,26.94461746,226.52,226.39,0.5001]
[1738179248778,0.82767335,226.51,226.39,0.5001]
[1738179249015,26.94461746,226.45,226.37,0.5001]
[1738179249314,26.94461746,226.47,226.43,0.5001]
[1738179249478,26.94461746,226.47,226.28,32.0]
[1738179249479,26.94461746,226.51,226.45,0.5001]
[1738179249679,26.94461746,226.62,226.57,0.5001]
[1738179249883,30.0,226.58,226.49,0.5001]
[1738179250080,0.82764158,226.7,226.59,0.5001]
[1738179250303,0.82764158,226.7,226.61,0.5001]
[1738179250503,26.94461746,226.65,226.61,0.5001]
[1738179250687,26.94461746,226.65,226.56,26.94461746]
[1738179250688,26.94461746,226.71,226.68,0.5001]
[1738179250884,26.94461746,226.73,226.68,0.5001]
[1738179251081,26.94461746,226.75,226.69,0.5001]
[1738179251277,26.94461746,226.71,226.61,27.44471746]
[1738179251511,26.94461746,226.65,226.61,0.5001]
[1738179251809,0.82728584,226.77,226.68,0.5001]
[1738179251989,0.82728584,226.77,226.53,30.0]
[1738179251990,1.82706112,226.81,226.64,0.5001]
[1738179252188,1.82706112,226.81,226.7,0.5001]
[1738179252189,0.82706112,226.81,226.7,0.5001]
[1738179252384,0.82706112,226.81,226.55,51.0]
[1738179252385,0.82706112,226.81,226.62,0.5001]
[1738179252597,26.94461746,226.63,226.62,0.5001]
[1738179252885,0.12549,226.77,226.62,0.5001]
[1738179252886,26.94461746,226.67,226.62,0.5001]
[1738179253080,26.94461746,226.71,226.66,0.5001]
[1738179253283,0.82731791,226.77,226.68,0.5001]
[1738179253507,0.82731791,226.77,226.49,26.94461746]
[1738179253508,0.82700356,226.76,226.61,0.5001]
[1738179253709,26.94461746,226.63,226.51,27.44471746]
[1738179254016,1.0,226.74,226.51,27.44471746]
[1738179254017,26.94461746,226.55,226.51,0.5001]
[1738179254187,0.82763446,226.7,226.58,0.5001]
[1738179254512,26.94461746,226.7,226.68,0.5001]
[1738179254729,0.82744056,226.77,226.66,0.5001]
[1738179255023,0.12549,226.74,226.54,0.5001]
[1738179255217,20.0,226.71,226.54,0.5001]
[1738179255509,26.94461746,226.58,226.53,0.5001]
[1738179255718,0.82762636,226.57,226.54,0.5001]
[1738179256021,26.94461746,226.73,226.7,0.5001]
[1738179256321,0.82704089,226.72,226.66,0.5001]
[1738179256523,26.94461746,226.68,226.67,0.5001]
[1738179256825,26.94461746,226.7,226.66,0.5001]
[1738179256994,26.94461746,226.74,226.69,0.5001]
[1738179257191,0.82718523,226.81,226.64,26.94461746]
[1738179257192,26.94461746,226.7,226.64,0.5001]
[1738179257396,26.94461746,226.68,226.64,0.5001]
[1738179257599,26.94461746,226.76,226.7,0.5001]
[1738179257792,26.94461746,226.78,226.74,0.5001]
[1738179258016,26.94461746,226.76,226.68,0.5001]
[1738179258204,26.94461746,226.75,226.74,0.5001]
[1738179258516,26.94461746,226.75,226.66,0.5001]
[1738179258722,26.94461746,226.68,226.58,0.5001]
[1738179258919,26.94461746,226.62,226.56,0.5001]
[1738179259225,26.94461746,226.62,226.57,0.5001]
[1738179259424,26.94461746,226.62,226.59,0.5001]
[1738179259757,26.94461746,226.62,226.51,0.12549]
[1738179259758,0.82744338,226.61,226.55,0.5001]
[1738179259898,26.94461746,226.57,226.49,0.5001]
[1738179260101,26.94461746,226.52,226.49,0.5001]
[1738179260299,26.94461746,226.56,226.53,0.5001]
[1738179260596,20.95313472,226.68,226.52,0.5001]
[1738179260818,20.95313472,226.68,226.56,0.5001]
[1738179261119,20.95313472,226.68,226.45,20.0]
[1738179261120,20.82764472,226.68,226.53,0.5001]
[1738179261433,20.82764472,226.68,226.47,4.4155]
[1738179261434,20.0,226.64,226.47,0.5001]
[1738179261633,26.94461746,226.5,226.48,0.5001]
[1738179261792,26.94461746,226.54,226.5,0.5001]
[1738179261998,26.94461746,226.57,226.51,0.5001]
[1738179262293,20.0,226.64,226.47,0.5001]
[1738179262294,26.94461746,226.55,226.47,0.5001]
[1738179262497,26.94461746,226.49,226.43,0.5001]
[1738179262701,27.77260648,226.59,226.54,0.5001]
[1738179262919,26.94461746,226.61,226.58,0.5001]
[1738179263126,0.12549,226.59,226.45,0.5001]
[1738179263422,20.0,226.5,226.35,0.5001]
[1738179263642,1.0,226.47,226.31,0.5001]
[1738179263950,20.0,226.4,226.26,0.5001]
[1738179264250,3.24502994,226.46,226.1,36.163]
[1738179264251,0.82856551,226.39,226.32,0.5001]
[1738179264417,0.82848747,226.45,226.31,0.5001]
[1738179264621,26.94461746,226.34,226.31,0.5001]
[1738179265014,0.82848747,226.45,226.32,0.5001]
[1738179265631,26.94461746,226.33,226.25,0.5001]
[1738179265836,26.94461746,226.28,226.25,0.5001]
[1738179266121,26.94461746,226.32,226.28,0.5001]
[1738179266434,0.82855615,226.31,226.3,0.5001]
[1738179266742,26.94461746,226.42,226.36,0.5001]
[1738179266946,0.82824099,226.41,226.39,0.5001]
[1738179267270,0.82824099,226.41,226.33,26.94461746]
[1738179267271,26.94461746,226.42,226.37,0.5001]
[1738179267419,26.94461746,226.38,226.33,0.5001]
[1738179267625,26.94461746,226.34,226.3,0.5001]
[1738179267923,26.94461746,226.36,226.26,27.44471746]
[1738179268121,26.94461746,226.34,226.31,0.5001]
[1738179268322,0.82851066,226.33,226.31,0.5001]
[1738179268523,0.82851066,226.33,226.24,26.94461746]
[1738179268524,26.94461746,226.32,226.24,0.5001]
[1738179268740,26.94461746,226.29,226.24,0.5001]
[1738179268942,26.94461746,226.35,226.31,0.5001]
[1738179269243,0.82850201,226.34,226.3,0.5001]
[1738179269437,26.94461746,226.33,226.27,0.5001]
[1738179269743,26.94461746,226.31,226.3,0.5001]
[1738179270043,27.77321178,226.37,226.33,0.5001]
[1738179270254,27.77321178,226.37,226.3,0.5001]
[1738179270255,0.82841094,226.36,226.3,0.5001]
[1738179270436,26.94461746,226.35,226.28,0.5001]
[1738179270762,1.87637,226.48,226.24,26.94461746]
[1738179270763,26.94461746,226.33,226.31,0.5001]
[1738179271052,26.94461746,226.37,226.34,0.5001]
[1738179271223,26.94461746,226.35,226.28,0.5001]
[1738179271423,26.94461746,226.31,226.3,0.5001]
[1738179271646,26.94461746,226.31,226.28,0.5001]
[1738179271834,26.94461746,226.33,226.32,0.5001]
[1738179272154,26.94461746,226.35,226.3,0.5001]
[1738179272320,0.828566,226.34,226.32,0.5001]
[1738179272519,26.94461746,226.37,226.36,0.5001]
[1738179272753,26.94461746,226.43,226.42,0.5001]
[1738179273045,20.0,226.4,226.3,0.5001]
[1738179273247,0.82864424,226.39,226.25,0.5001]
[1738179273438,26.94461746,226.26,226.25,0.5001]
[1738179273825,26.94461746,226.3,226.27,0.5001]
[1738179274025,26.94461746,226.28,226.25,0.5001]
[1738179274235,0.82878306,226.27,226.25,0.5001]
[1738179274454,26.94461746,226.28,226.25,0.5001]
[1738179274642,26.94461746,226.28,226.27,0.5001]
[1738179275042,26.94461746,226.3,226.27,0.5001]
[1738179275228,26.94461746,226.32,226.3,0.5001]
[1738179275556,0.82882006,226.37,226.33,0.5001]
[1738179275557,26.94461746,226.36,226.33,0.5001]
[1738179275726,26.94461746,226.36,226.35,0.5001]
[1738179275925,26.94461746,226.41,226.39,0.5001]
[1738179276123,26.94461746,226.41,226.33,26.94461746]
[1738179276124,26.94461746,226.43,226.42,0.5001]
[1738179276529,26.94461746,226.45,226.44,0.5001]
[1738179276734,26.94461746,226.47,226.46,0.5001]
[1738179276951,26.94461746,226.47,226.44,0.5001]
[1738179277272,26.94461746,226.47,226.46,0.5001]
[1738179277428,26.94461746,226.47,226.34,0.12549]
[1738179277429,26.94461746,226.47,226.44,0.5001]
[1738179277755,26.94461746,226.45,226.39,0.5001]
[1738179277951,26.94461746,226.49,226.46,0.5001]
[1738179278147,26.94461746,226.47,226.44,0.5001]
[1738179278352,26.94461746,226.45,226.41,0.5001]
[1738179278564,26.94461746,226.45,226.42,0.5001]
[1738179278857,0.82801401,226.58,226.45,0.5001]
[1738179279155,20.0,226.57,226.43,0.5001]
[1738179279374,0.82811125,226.56,226.5,0.5001]
[1738179279539,0.82789023,226.59,226.55,0.5001]
[1738179279736,26.94461746,226.56,226.55,0.5001]
[1738179280167,26.94461746,226.58,226.57,0.5001]
[1738179280460,26.94461746,226.58,226.54,0.5001]
[1738179280670,0.82774839,226.68,226.54,0.5001]
[1738179280671,26.94461746,226.57,226.54,0.5001]
[1738179280872,26.94461746,226.59,226.58,0.5001]
[1738179281159,26.94461746,226.59,226.56,0.5001]
[1738179281361,26.94461746,226.57,226.51,0.5001]
[1738179281550,0.03,226.66,226.56,0.5001]
[1738179281746,0.03,226.66,226.37,30.0]
[1738179281747,0.03,226.66,226.65,0.5001]
[1738179282858,0.03,226.66,226.65,27.44471746]
[1738179283165,1.5584,226.85,226.65,27.44471746]
[1738179283166,26.94461746,226.84,226.81,0.5001]
[1738179283351,0.03,226.94,226.86,0.5001]
[1738179283543,0.82656511,226.92,226.84,0.5001]
[1738179283740,0.82656511,226.92,226.8,0.5001]
[1738179283957,0.82656511,226.92,226.84,0.5001]
[1738179284163,1.0,226.84,226.71,0.5001]
[1738179284359,0.37647,226.78,226.64,0.5001]
[1738179284540,0.37647,226.76,226.6,0.5001]
[1738179284739,0.8273988,226.75,226.67,0.5001]
[1738179284949,26.94461746,226.72,226.71,0.5001]
[1738179285147,26.94461746,226.74,226.71,0.5001]
[1738179285359,26.94461746,226.78,226.77,0.5001]
[1738179285540,26.94461746,226.78,226.75,0.5001]
[1738179285749,26.94461746,226.76,226.72,0.5001]
[1738179285954,26.94461746,226.74,226.7,0.5001]
[1738179286253,26.94461746,226.79,226.76,0.5001]
[1738179286453,0.1,226.8,226.78,0.5001]
[1738179287159,26.94461746,226.79,226.78,0.5001]
[1738179287663,0.1,226.8,226.78,0.4001]
[1738179288037,26.94461746,226.79,226.78,0.4001]
[1738179288759,0.1,226.8,226.78,0.4001]
[1738179289935,0.1,226.8,226.79,26.94461746]
[1738179290163,26.94461746,226.93,226.92,0.4001]
[1738179290341,0.03,226.94,226.92,27.34471746]
[1738179290549,0.03,227.0,226.99,0.4001]
[1738179290962,0.03,227.0,226.99,27.47020746]
[1738179291466,0.03,227.23,227.19,0.4001]
[1738179291467,26.94461746,227.2,227.19,0.4001]
[1738179291671,0.03,227.23,227.21,0.4001]
[1738179292365,0.03,227.23,227.12,0.4001]
[1738179292575,26.94461746,227.21,227.19,0.4001]
[1738179292749,26.94461746,227.21,227.11,26.94461746]
[1738179292750,26.97461746,227.23,227.17,0.4001]
[1738179293072,26.97461746,227.23,227.22,0.4001]
[1738179293073,0.03,227.23,227.22,0.4001]
[1738179294166,26.97461746,227.23,227.2,0.4001]
[1738179294382,26.94461746,227.21,227.19,0.4001]
[1738179294552,0.03,227.23,227.22,0.4001]
[1738179294769,27.79981122,227.23,227.2,0.4001]
[1738179295068,0.03,227.23,227.22,0.4001]
[1738179295270,26.97461746,227.23,227.2,0.4001]
[1738179295450,0.03,227.23,227.22,0.4001]
[1738179295648,26.97461746,227.23,227.22,0.4001]
[1738179295874,26.97461746,227.23,227.13,0.4001]
[1738179296171,0.12549,227.21,227.08,0.4001]
[1738179296347,0.03,227.23,227.12,0.4001]
[1738179296544,1.5999,227.21,227.09,0.4001]
[1738179296844,26.94461746,227.1,227.05,0.4001]
[1738179297060,26.94461746,227.15,226.94,4.4063]
[1738179297061,26.94461746,227.06,227.03,0.4001]
[1738179297294,53.88923492,227.04,226.98,0.4001]
[1738179297453,0.82617763,227.03,227.0,0.4001]
[1738179297782,26.94461746,227.01,227.0,0.4001]
[1738179298241,26.94461746,227.01,226.96,0.4001]
[1738179298442,26.94461746,226.97,226.93,0.4001]
[1738179298647,26.94461746,227.01,227.0,0.4001]
[1738179298879,26.94461746,227.01,226.96,0.4001]
[1738179299055,26.94461746,227.01,226.84,1.0]
[1738179299056,0.82616432,227.0,226.95,0.4001]
[1738179299251,21.97637,227.1,226.74,41.0255]
[1738179299252,26.94461746,226.96,226.94,0.4001]
[1738179299571,26.94461746,226.99,226.98,0.4001]
[1738179299785,26.94461746,227.03,226.98,0.4001]
[1738179300077,20.0,227.1,227.05,0.4001]
[1738179300292,20.0,227.1,227.06,0.4001]
[1738179300293,0.82586007,227.09,227.06,0.4001]
[1738179300451,0.82586007,227.09,226.98,0.4001]
[1738179300647,20.0,227.05,226.94,0.4001]
[1738179300847,20.0,227.05,226.91,0.4001]
[1738179300848,20.0,227.0,226.91,0.4001]
[1738179301085,0.12549,226.98,226.74,1.0]
[1738179301296,26.94461746,226.89,226.8,26.94461746]
[1738179301607,26.94461746,226.97,226.86,26.94461746]
[1738179301766,26.94461746,226.95,226.86,26.94461746]
[1738179301962,26.94461746,226.93,226.84,26.94461746]
[1738179302167,26.94461746,226.97,226.87,26.94461746]
[1738179302391,26.94461746,226.99,226.9,23.902374]
[1738179302596,26.94461746,227.06,226.97,26.94461746]
[1738179302895,0.82616622,227.14,226.88,26.94461746]
[1738179302896,0.82579223,227.05,226.88,26.94461746]
[1738179303089,0.82579223,227.05,226.82,26.94461746]
[1738179303272,26.94461746,226.94,226.85,26.94461746]
[1738179303467,26.94461746,226.96,226.86,26.94461746]
[1738179303662,26.94461746,226.96,226.8,4.4091]
[1738179303663,26.94461746,226.92,226.84,26.94461746]
[1738179303869,26.94461746,226.94,226.84,26.94461746]
[1738179304170,26.94461746,227.0,226.9,26.94461746]
[1738179304404,40.73241746,227.15,226.82,27.94461746]
[1738179304405,26.94461746,226.96,226.88,26.94461746]
[1738179304580,0.82613819,227.12,226.92,26.94461746]
[1738179304808,26.94461746,227.04,226.95,26.94461746]
[1738179305086,0.82591723,227.03,226.87,26.94461746]
[1738179305286,0.37647,227.01,226.74,1.0]
[1738179305486,0.12549,226.97,226.75,26.94461746]
[1738179305796,26.94461746,226.87,226.79,26.94461746]
[1738179305971,26.94461746,226.93,226.83,26.94461746]
[1738179306173,26.94461746,226.91,226.83,26.94461746]
[1738179306375,26.94461746,226.93,226.83,26.94461746]
[1738179306567,26.94461746,226.95,226.85,26.94461746]
[1738179306778,26.94461746,226.97,226.87,26.94461746]
[1738179307108,26.94461746,226.93,226.83,26.94461746]
[1738179307394,26.94461746,226.95,226.85,26.94461746]
[1738179307607,26.94461746,226.95,226.79,0.25098]
[1738179307608,26.94461746,226.93,226.78,0.12549]
[1738179307775,26.94461746,226.83,226.75,26.94461746]
[1738179308095,26.94461746,226.81,226.73,26.94461746]
[1738179308691,26.94461746,226.76,226.67,26.94461746]
[1738179308873,26.94461746,226.68,226.58,26.94461746]
[1738179309198,26.94461746,226.64,226.56,26.94461746]
[1738179309403,26.94461746,226.71,226.52,26.94461746]
[1738179309404,26.94461746,226.6,226.52,26.94461746]
[1738179309578,26.94461746,226.58,226.5,26.94461746]
[1738179309772,26.94461746,226.58,226.47,27.00761746]
[1738179310082,26.94461746,226.52,226.47,0.063]
[1738179310264,26.94461746,226.48,226.47,0.063]
[1738179310890,27.77271132,226.48,226.47,0.0001]
[1738179311376,27.77271132,226.48,226.26,26.94461746]
[1738179311578,26.94461746,226.36,226.26,26.94461746]
[1738179311895,0.82809386,226.48,226.19,27.94461746]
[1738179311896,26.94461746,226.28,226.19,27.94461746]
[1738179312086,26.94461746,226.26,226.17,26.94461746]
[1738179312495,26.94461746,226.28,226.19,26.94461746]
[1738179312684,0.82840453,226.35,226.15,1.0]
[1738179312685,26.94461746,226.3,226.21,26.94461746]
[1738179312884,26.94461746,226.3,226.19,26.94461746]
[1738179313089,26.94461746,226.26,226.17,26.94461746]
[1738179313400,26.94461746,226.22,226.14,0.063]
[1738179313710,26.94461746,226.26,226.17,26.94461746]
[1738179314014,26.94461746,226.28,226.2,0.12549]
[1738179314310,26.94461746,226.26,226.17,26.94461746]
[1738179314688,26.94461746,226.24,226.15,26.94461746]
[1738179314883,0.95417296,226.37,226.14,0.063]
[1738179314884,26.94461746,226.2,226.14,0.063]
[1738179315082,26.94461746,226.22,226.14,0.063]
[1738179315282,26.94461746,226.24,226.16,0.12549]
[1738179315596,0.82896646,226.37,226.18,0.12549]
[1738179315597,26.94461746,226.26,226.18,0.12549]
[1738179315802,26.94461746,226.28,226.19,26.94461746]
[1738179316300,26.94461746,226.32,226.24,0.12549]
[1738179316474,26.94461746,226.38,226.31,26.94461746]
[1738179316675,26.94461746,226.42,226.34,0.12549]
[1738179316873,26.94461746,226.42,226.34,24.027864]
[1738179317075,26.94461746,226.46,226.37,26.94461746]
[1738179317272,26.94461746,226.46,226.35,26.94461746]
[1738179317498,26.94461746,226.46,226.38,0.12549]
[1738179317785,26.94461746,226.48,226.4,0.12549]
[1738179317981,26.94461746,226.48,226.4,24.027864]
[1738179318298,0.82810545,226.57,226.39,26.94461746]
[1738179318299,26.94461746,226.57,226.46,46.94461746]
[1738179318499,26.94461746,226.63,226.54,0.12549]
[1738179318700,26.94461746,226.63,226.55,4.414]
[1738179319007,0.82738211,226.7,226.56,21.12549]
[1738179319212,0.82723812,226.79,226.6,0.12549]
[1738179319379,0.82697855,226.86,226.64,0.12549]
[1738179319697,0.82697855,226.86,226.65,0.37647]
[1738179319900,0.82697855,226.86,226.68,0.12549]
[1738179320105,26.94461746,226.83,226.74,26.94461746]
[1738179320306,26.94461746,226.81,226.71,50.97248146]
[1738179320478,26.94461746,226.73,226.63,27.94461746]
[1738179320679,26.94461746,226.81,226.72,24.027864]
[1738179320874,0.82686607,226.9,226.72,0.12549]
[1738179321093,0.82686607,226.9,226.7,26.94461746]
[1738179321405,0.82686607,226.9,226.68,4.4115]
[1738179321596,2.0,226.88,226.63,4.4124]
[1738179321799,0.8269409,226.87,226.63,4.4124]
[1738179321996,26.94461746,226.72,226.64,27.07010746]
[1738179322324,26.94461746,226.72,226.63,26.94461746]
[1738179322503,26.94461746,226.67,226.58,31.35801746]
[1738179322704,0.82713504,226.81,226.69,0.12549]
[1738179323014,0.82672712,226.92,226.73,20.0]
[1738179323312,1.763972,226.99,226.78,24.278844]
[1738179323491,0.82635438,226.98,226.78,24.027864]
[1738179323705,0.82635438,226.98,226.78,0.12549]
[1738179324005,26.94461746,226.93,226.83,26.94461746]
[1738179324191,26.94461746,226.93,226.84,24.278844]
[1738179324392,26.94461746,227.04,226.84,24.278844]
[1738179324393,26.94461746,226.91,226.85,4.4081]
[1738179324598,26.94461746,226.89,226.81,4.4088]
[1738179324798,26.94461746,226.87,226.81,4.4088]
[1738179325327,26.94461746,226.83,226.73,26.94461746]
[1738179325490,26.94461746,226.81,226.73,26.94461746]
[1738179325885,26.94461746,226.75,226.58,1.0]
[1738179326183,0.82723194,226.81,226.64,1.0]
[1738179326383,26.94461746,226.81,226.71,0.12549]
[1738179326617,26.94461746,226.81,226.72,0.25098]
[1738179326792,26.94461746,226.84,226.75,0.12549]
[1738179326990,0.82687517,226.88,226.72,26.94461746]
[1738179326991,26.94461746,226.82,226.72,26.94461746]
[1738179327339,26.94461746,226.86,226.78,27.07010746]
[1738179327521,26.94461746,226.88,226.78,26.94461746]
[1738179327688,0.82654878,226.92,226.76,26.94461746]
[1738179327689,26.94461746,226.86,226.76,26.94461746]
[1738179327888,0.82656116,226.92,226.78,50.97248146]
[1738179328090,26.94461746,226.88,226.81,0.12549]
[1738179328686,26.94461746,226.93,226.77,4.4097]
[1738179328890,26.94461746,226.85,226.77,4.4097]
[1738179329089,0.82649587,226.84,226.73,4.4104]
[1738179329298,26.94461746,226.93,226.67,1.0]
[1738179329299,26.94461746,226.76,226.71,4.4108]
[1738179329513,26.94461746,226.74,226.67,4.4116]
[1738179329727,26.94461746,226.68,226.62,4.4126]
[1738179329896,26.94461746,226.64,226.58,4.4134]
[1738179330222,26.94461746,226.6,226.51,26.94461746]
[1738179330392,26.94461746,226.57,226.51,4.4146]
[1738179330595,26.94461746,226.57,226.42,30.0]
[1738179330596,26.94461746,226.55,226.43,26.94461746]
[1738179330902,26.94461746,226.55,226.31,1.0]
[1738179330903,26.94461746,226.54,226.45,26.94461746]
[1738179331127,26.94461746,226.5,226.42,4.4163]
[1738179331414,26.94461746,226.45,226.37,31.36211746]
[1738179331716,26.94461746,226.38,226.29,26.94461746]
[1738179331896,26.94461746,226.32,226.22,31.36501746]
[1738179332098,26.94461746,226.32,226.31,17.669111]
[1738179332294,26.94461746,226.32,226.22,31.36501746]
[1738179332501,26.94461746,226.3,226.2,31.42821746]
[1738179332697,26.94461746,226.3,226.2,27.00761746]
[1738179332898,26.94461746,226.28,226.2,0.063]
[1738179333104,26.94461746,226.3,226.2,27.00761746]
[1738179333306,26.94461746,226.28,226.2,0.063]
[1738179333505,26.94461746,226.28,226.2,4.4837]
[1738179333797,26.94461746,226.25,226.2,0.063]
[1738179333997,26.94461746,226.33,226.24,0.25098]
[1738179334205,26.94461746,226.35,226.26,26.94461746]
[1738179334898,26.94461746,226.33,226.24,26.94461746]
[1738179335103,26.94461746,226.26,226.2,0.063]
[1738179335327,0.82848128,226.32,226.2,0.063]
[1738179335328,0.82864519,226.25,226.2,0.063]
[1738179335825,26.94461746,226.21,226.2,0.063]
[1738179336624,0.82914837,226.25,226.2,0.063]
[1738179336625,26.94461746,226.23,226.2,0.063]
[1738179337310,26.94461746,226.21,226.2,0.063]
[1738179338231,26.94461746,226.18,226.14,0.063]
[1738179338424,27.77391123,226.18,226.14,0.063]
[1738179338909,54.71852869,226.18,226.17,0.0001]
[1738179339109,20.0,226.15,226.14,0.063]
[1738179339426,0.8294667,226.15,226.11,0.063]
[1738179339624,27.77380448,226.14,226.11,0.063]
[1738179339800,26.94461746,226.14,226.11,0.063]
[1738179340126,0.82922826,226.13,226.11,0.063]
[1738179340420,27.77408477,226.12,226.11,0.063]
[1738179341635,20.0,226.37,226.11,0.063]
[1738179341636,26.94461746,226.16,226.11,0.063]
[1738179341800,26.94461746,226.18,226.11,0.063]
[1738179342002,26.94461746,226.2,226.11,31.55560746]
[1738179342307,26.94461746,226.24,226.15,26.94461746]
[1738179342704,0.82884397,226.23,226.15,26.94461746]
[1738179342907,26.94461746,226.26,226.18,0.12549]
[1738179343107,26.94461746,226.24,226.15,26.94461746]
[1738179343303,26.94461746,226.16,226.11,0.063]
[1738179343716,26.94461746,226.14,226.11,0.063]
[1738179344221,26.94461746,226.18,226.11,0.063]
[1738179344528,26.94461746,226.13,226.11,0.063]
[1738179344717,26.94461746,226.19,226.11,0.063]
[1738179345210,26.94461746,226.19,226.11,0.18849]
[1738179345413,26.94461746,226.21,226.12,26.94461746]
[1738179345628,0.82926977,226.26,226.15,0.12549]
[1738179345629,26.94461746,226.25,226.15,0.12549]
[1738179345830,26.94461746,226.25,226.14,26.94461746]
[1738179345999,26.94461746,226.21,226.12,26.94461746]
[1738179346201,26.94461746,226.25,226.15,26.94461746]
[1738179346515,26.94461746,226.25,226.16,0.12549]
[1738179346828,26.94461746,226.23,226.13,26.94461746]
[1738179347025,26.94461746,226.23,226.14,0.12549]
[1738179347723,26.94461746,226.29,226.19,26.94461746]
[1738179347918,26.94461746,226.22,226.15,4.4218]
[1738179348106,26.94461746,226.22,226.14,24.153354]
[1738179348307,26.94461746,226.24,226.14,51.09797146]
[1738179348513,26.94461746,226.26,226.17,24.153354]
[1738179348719,26.94461746,226.24,226.17,0.12549]
[1738179349328,26.94461746,226.22,226.12,26.94461746]
[1738179349504,26.94461746,226.18,226.11,0.063]
[1738179350140,26.94461746,226.18,226.11,0.18849]
[1738179350502,0.82899469,226.26,226.11,0.063]
[1738179350503,26.94461746,226.16,226.11,0.063]
[1738179350726,26.94461746,226.18,226.11,0.063]
[1738179351110,26.94461746,226.2,226.11,24.216354]
[1738179351307,26.94461746,226.18,226.11,0.063]
[1738179351907,26.94461746,226.2,226.11,0.18849]
[1738179352109,26.94461746,226.22,226.14,26.94461746]
[1738179352517,26.94461746,226.25,226.14,26.94461746]
[1738179352723,26.94461746,226.16,226.11,0.063]
[1738179352932,26.94461746,226.18,226.11,0.063]
[1738179353122,0.82918732,226.17,226.11,0.063]
[1738179353305,26.94461746,226.16,226.11,0.063]
[1738179353499,26.94461746,226.18,226.11,0.063]
[1738179353727,0.82915938,226.17,226.11,0.063]
[1738179354127,26.94461746,226.22,226.13,26.94461746]
[1738179354338,26.94461746,226.2,226.11,0.063]